[Event "GrandPrix_30.05"]
[Site "Chess.com"]
[Date "2020.05.30"]
[Round "1"]
[White "Kopytkin"]
[Black "AsadliVugar"]
[Result "0-1"]
[WhiteElo "2101"]
[BlackElo "2451"]
[TimeControl "600+2"]
[EndTime "8:24:48 PDT"]
[Termination "AsadliVugar won on time"]

1. e4 {[%clk 0:10:01.5]} 1... e5 {[%clk 0:09:50.5]} 2. Nf3 {[%clk 0:10:01.6]}
2... Nc6 {[%clk 0:09:51.7]} 3. Bc4 {[%clk 0:10:00.6]} 3... Bc5 {[%clk
0:09:47.9]} 4. d3 {[%clk 0:10:01.4]} 4... Nf6 {[%clk 0:09:48.7]} 5. Nc3 {[%clk
0:10:01.5]} 5... d6 {[%clk 0:09:46.5]} 6. Be3 {[%clk 0:09:53.5]} 6... a6 {[%clk
0:09:17.2]} 7. h3 {[%clk 0:09:30.8]} 7... O-O {[%clk 0:09:09.9]} 8. Bg5 {[%clk
0:08:03]} 8... h6 {[%clk 0:04:07.4]} 9. Bh4 {[%clk 0:07:15.3]} 9... Bb4 {[%clk
0:04:06.8]} 10. O-O {[%clk 0:04:49]} 10... Bxc3 {[%clk 0:04:06.5]} 11. bxc3
{[%clk 0:04:47.8]} 11... Be6 {[%clk 0:04:08.1]} 12. Nd2 {[%clk 0:04:31.8]} 12...
g5 {[%clk 0:04:07.8]} 13. Bg3 {[%clk 0:04:29.4]} 13... Ne7 {[%clk 0:04:08.6]}
14. Re1 {[%clk 0:04:19.9]} 14... Ng6 {[%clk 0:04:09.4]} 15. d4 {[%clk 0:04:15]}
15... Qe7 {[%clk 0:04:01.4]} 16. Rb1 {[%clk 0:04:09.1]} 16... b5 {[%clk
0:04:02.5]} 17. Bb3 {[%clk 0:04:00.5]} 17... c5 {[%clk 0:03:56.3]} 18. Bxe6
{[%clk 0:03:53.3]} 18... Qxe6 {[%clk 0:03:56.5]} 19. d5 {[%clk 0:03:36.8]} 19...
Qd7 {[%clk 0:03:42.9]} 20. Nf1 {[%clk 0:03:37.6]} 20... Kh7 {[%clk 0:03:26.8]}
21. Qf3 {[%clk 0:03:30.8]} 21... Ne8 {[%clk 0:03:15.6]} 22. Ne3 {[%clk
0:03:30.2]} 22... Ng7 {[%clk 0:03:16.8]} 23. Qf6 {[%clk 0:02:54.5]} 23... Qe7
{[%clk 0:02:59.2]} 24. Qxe7 {[%clk 0:02:36.9]} 24... Nxe7 {[%clk 0:03:00.3]} 25.
f3 {[%clk 0:02:28.7]} 25... f5 {[%clk 0:02:58.1]} 26. Bf2 {[%clk 0:02:24.1]}
26... Rfb8 {[%clk 0:02:28.5]} 27. a3 {[%clk 0:02:12.2]} 27... Kg6 {[%clk
0:02:28.2]} 28. g4 {[%clk 0:02:03.4]} 28... f4 {[%clk 0:02:20.9]} 29. Nf1 {[%clk
0:02:02.3]} 29... Nc8 {[%clk 0:02:20.4]} 30. Nd2 {[%clk 0:01:54.1]} 30... Nb6
{[%clk 0:02:21.5]} 31. Rbc1 {[%clk 0:01:12.9]} 31... Ne8 {[%clk 0:02:21.9]} 32.
Red1 {[%clk 0:01:03]} 32... Nf6 {[%clk 0:02:22.7]} 33. Be1 {[%clk 0:01:01]}
33... Nfd7 {[%clk 0:02:23.5]} 34. Ra1 {[%clk 0:00:51.7]} 34... Na4 {[%clk
0:02:19.3]} 35. Nb3 {[%clk 0:00:51.8]} 35... Nb2 {[%clk 0:02:14.1]} 36. Rdb1
{[%clk 0:00:51.4]} 36... Nc4 {[%clk 0:02:15.6]} 37. Kf2 {[%clk 0:00:47.8]} 37...
Ndb6 {[%clk 0:02:15.5]} 38. Ke2 {[%clk 0:00:48.6]} 38... Na4 {[%clk 0:02:16.7]}
39. Bd2 {[%clk 0:00:46.8]} 39... h5 {[%clk 0:02:14.3]} 40. Rg1 {[%clk
0:00:41.8]} 40... hxg4 {[%clk 0:02:14.8]} 41. hxg4 {[%clk 0:00:42.6]} 41... Rh8
{[%clk 0:02:15.3]} 42. Rh1 {[%clk 0:00:42.3]} 42... Rxh1 {[%clk 0:02:15.2]} 43.
Rxh1 {[%clk 0:00:43.1]} 43... Nxa3 {[%clk 0:02:16.6]} 44. Na5 {[%clk 0:00:43.8]}
44... Nc4 {[%clk 0:02:07.5]} 45. Nxc4 {[%clk 0:00:30.9]} 45... bxc4 {[%clk
0:02:08.2]} 46. Ra1 {[%clk 0:00:31.8]} 46... Nb6 {[%clk 0:02:06.2]} 47. Rb1
{[%clk 0:00:30.9]} 47... Nc8 {[%clk 0:02:02.2]} 48. Bc1 {[%clk 0:00:25.4]} 48...
a5 {[%clk 0:01:58.3]} 49. Ba3 {[%clk 0:00:24.8]} 49... Kf6 {[%clk 0:01:50.2]}
50. Rb7 {[%clk 0:00:24.5]} 50... a4 {[%clk 0:01:45.2]} 51. Kf2 {[%clk 0:00:22]}
51... Ra6 {[%clk 0:01:41.5]} 52. Rb8 {[%clk 0:00:06.8]} 52... Ne7 {[%clk
0:01:40.7]} 53. Ke2 {[%clk 0:00:06.8]} 53... Kf7 {[%clk 0:01:36.5]} 54. Rb7
{[%clk 0:00:07.2]} 54... Ke8 {[%clk 0:01:37.1]} 55. Rb8+ {[%clk 0:00:08]} 55...
Kd7 {[%clk 0:01:38.5]} 56. Kd2 {[%clk 0:00:09.3]} 56... Ra7 {[%clk 0:01:34.4]}
57. Rh8 {[%clk 0:00:07.9]} 57... Rb7 {[%clk 0:01:35.1]} 58. Kc1 {[%clk
0:00:08.7]} 58... Ng6 {[%clk 0:01:31.6]} 59. Rh7+ {[%clk 0:00:08.9]} 59... Kc8
{[%clk 0:01:32.1]} 60. Rh6 {[%clk 0:00:08.1]} 60... Rg7 {[%clk 0:01:29.3]} 61.
Kb1 {[%clk 0:00:08.7]} 61... Kd7 {[%clk 0:01:30.1]} 62. Bc1 {[%clk 0:00:08.3]}
62... Nh4 {[%clk 0:01:31]} 63. Ka2 {[%clk 0:00:06.3]} 63... Nxf3 {[%clk
0:01:31.9]} 64. Ka3 {[%clk 0:00:07.7]} 64... Ne1 {[%clk 0:01:26.6]} 65. Kxa4
{[%clk 0:00:08.2]} 65... Nxc2 {[%clk 0:01:26.9]} 66. Kb5 {[%clk 0:00:08.7]}
66... Rf7 {[%clk 0:00:59]} 67. Rh2 {[%clk 0:00:03.7]} 67... Ne3 {[%clk
0:00:58.8]} 68. Ra2 {[%clk 0:00:04.4]} 68... Nxg4 {[%clk 0:00:57.7]} 69. Ra7+
{[%clk 0:00:04.2]} 69... Ke8 {[%clk 0:00:59.2]} 70. Ra8+ {[%clk 0:00:05.2]}
70... Ke7 {[%clk 0:01:00.1]} 71. Kc6 {[%clk 0:00:06.6]} 71... Nf2 {[%clk
0:00:56.1]} 72. Ra7+ {[%clk 0:00:07.4]} 72... Kf6 {[%clk 0:00:57.3]} 73. Ra2
{[%clk 0:00:07.2]} 73... Nxe4 {[%clk 0:00:57.1]} 74. Ra8 {[%clk 0:00:03.2]}
74... g4 {[%clk 0:00:56.7]} 0-1

[Event "GrandPrix_30.05"]
[Site "Chess.com"]
[Date "2020.05.30"]
[Round "1"]
[White "tsaruk_maks"]
[Black "DaggiGretarsson"]
[Result "1-0"]
[WhiteElo "2358"]
[BlackElo "2034"]
[TimeControl "600+2"]
[EndTime "8:24:53 PDT"]
[Termination "tsaruk_maks won by resignation"]

1. e4 {[%clk 0:10:00.8]} 1... g6 {[%clk 0:09:57]} 2. d4 {[%clk 0:10:01]} 2...
Bg7 {[%clk 0:09:58]} 3. Nc3 {[%clk 0:10:01.2]} 3... d6 {[%clk 0:09:51.2]} 4. Be3
{[%clk 0:10:01.8]} 4... a6 {[%clk 0:09:50.2]} 5. Qd2 {[%clk 0:09:42.9]} 5... b5
{[%clk 0:09:49.9]} 6. O-O-O {[%clk 0:08:49.2]} 6... Nd7 {[%clk 0:09:44.8]} 7. f4
{[%clk 0:08:46.3]} 7... Ngf6 {[%clk 0:08:36.1]} 8. e5 {[%clk 0:08:45.2]} 8...
Ng4 {[%clk 0:08:36.5]} 9. Be2 {[%clk 0:08:46.4]} 9... Nxe3 {[%clk 0:08:36]} 10.
Qxe3 {[%clk 0:08:48.3]} 10... Nb6 {[%clk 0:08:33.6]} 11. Bf3 {[%clk 0:08:38.5]}
11... Rb8 {[%clk 0:07:58.7]} 12. h4 {[%clk 0:07:13.3]} 12... h5 {[%clk
0:07:39.7]} 13. Nh3 {[%clk 0:07:13]} 13... Bxh3 {[%clk 0:07:29.7]} 14. Rxh3
{[%clk 0:07:10.6]} 14... e6 {[%clk 0:07:30.1]} 15. Bc6+ {[%clk 0:05:37.6]} 15...
Kf8 {[%clk 0:07:25.3]} 16. d5 {[%clk 0:05:38.3]} 16... Nc4 {[%clk 0:03:51.2]}
17. Qe4 {[%clk 0:05:37.2]} 17... dxe5 {[%clk 0:01:55.8]} 18. dxe6 {[%clk
0:05:30.3]} 18... Nd6 {[%clk 0:01:51.5]} 19. Qb4 {[%clk 0:04:46.8]} 19... exf4
{[%clk 0:01:29.6]} 20. Nd5 {[%clk 0:04:35.9]} 20... fxe6 {[%clk 0:01:23.5]} 21.
Nxf4 {[%clk 0:04:36.2]} 21... Bh6 {[%clk 0:01:15]} 22. Kb1 {[%clk 0:03:44.7]}
22... Bxf4 {[%clk 0:01:10]} 23. Qxf4+ {[%clk 0:03:46.5]} 23... Kg7 {[%clk
0:01:10.9]} 24. Rf3 {[%clk 0:02:18.9]} 24... Rf8 {[%clk 0:01:10]} 25. Qe5+
{[%clk 0:02:11.5]} 25... Kh7 {[%clk 0:01:04.5]} 26. Qxe6 {[%clk 0:02:09.4]}
26... Rxf3 {[%clk 0:00:44.1]} 27. Bxf3 {[%clk 0:02:11.2]} 27... Qe8 {[%clk
0:00:32]} 28. Qd5 {[%clk 0:01:35.5]} 28... Qe3 {[%clk 0:00:22.3]} 29. Qc6 {[%clk
0:01:15.5]} 29... Qe7 {[%clk 0:00:15.5]} 30. Qxa6 {[%clk 0:00:39.4]} 30... Nc4
{[%clk 0:00:10.9]} 31. Qc6 {[%clk 0:00:06.5]} 31... Qe5 {[%clk 0:00:09.5]} 32.
Qd7+ {[%clk 0:00:06.7]} 32... Kh6 {[%clk 0:00:09.6]} 33. c3 {[%clk 0:00:08]}
33... b4 {[%clk 0:00:08]} 34. Qd4 {[%clk 0:00:05.8]} 34... Qf5+ {[%clk
0:00:06.7]} 35. Be4 {[%clk 0:00:05.9]} 35... Qg4 {[%clk 0:00:07.9]} 36. b3
{[%clk 0:00:03.5]} 36... Nd6 {[%clk 0:00:08.3]} 37. Bf3 {[%clk 0:00:04.1]} 37...
Qf5+ {[%clk 0:00:09]} 38. Kb2 {[%clk 0:00:04.5]} 38... bxc3+ {[%clk 0:00:07.5]}
39. Qxc3 {[%clk 0:00:06.4]} 39... Nb5 {[%clk 0:00:08]} 40. Qd2+ {[%clk
0:00:06.9]} 40... Kh7 {[%clk 0:00:06.7]} 41. Qd7+ {[%clk 0:00:08.4]} 41... Kh6
{[%clk 0:00:07.9]} 42. Qxf5 {[%clk 0:00:09.1]} 42... gxf5 {[%clk 0:00:09.4]} 43.
Rd5 {[%clk 0:00:10.1]} 43... Kg6 {[%clk 0:00:09.9]} 44. Rc5 {[%clk 0:00:08.4]}
44... Kf6 {[%clk 0:00:09]} 45. Bxh5 {[%clk 0:00:07.7]} 45... f4 {[%clk
0:00:09.6]} 46. Bf3 {[%clk 0:00:07.6]} 46... Ke6 {[%clk 0:00:08.7]} 47. h5
{[%clk 0:00:05.5]} 47... Kd6 {[%clk 0:00:09.9]} 48. Rd5+ {[%clk 0:00:06.8]}
48... Ke6 {[%clk 0:00:11]} 49. h6 {[%clk 0:00:08.4]} 49... Nd6 {[%clk
0:00:09.8]} 50. h7 {[%clk 0:00:08.8]} 50... Rh8 {[%clk 0:00:10.7]} 51. Rh5
{[%clk 0:00:08.6]} 51... Kf6 {[%clk 0:00:12.1]} 52. Bd5 {[%clk 0:00:08.4]} 52...
Kg6 {[%clk 0:00:12.1]} 53. Rh4 {[%clk 0:00:08.5]} 53... Rxh7 {[%clk 0:00:12.8]}
54. Rxf4 {[%clk 0:00:08.1]} 54... Kg5 {[%clk 0:00:13.3]} 55. Rf2 {[%clk
0:00:05.5]} 55... Re7 {[%clk 0:00:14.2]} 56. Bf3 {[%clk 0:00:06.3]} 56... Re3
{[%clk 0:00:14.5]} 57. Rd2 {[%clk 0:00:07.6]} 57... Kf4 {[%clk 0:00:14.8]} 58.
a4 {[%clk 0:00:08.8]} 58... Ke5 {[%clk 0:00:09.2]} 59. Re2 {[%clk 0:00:09.7]}
59... Rxe2+ {[%clk 0:00:07.9]} 60. Bxe2 {[%clk 0:00:11.6]} 60... Kd4 {[%clk
0:00:09.3]} 61. a5 {[%clk 0:00:12.4]} 61... Kc5 {[%clk 0:00:10.5]} 62. a6 {[%clk
0:00:14]} 62... Kb6 {[%clk 0:00:11.6]} 63. g4 {[%clk 0:00:15.4]} 63... Ne4
{[%clk 0:00:11.8]} 64. Bd3 {[%clk 0:00:13.7]} 64... Nc5 {[%clk 0:00:11.8]} 65.
Bf5 {[%clk 0:00:11.2]} 65... Nxa6 {[%clk 0:00:09.9]} 66. g5 {[%clk 0:00:12.5]}
66... Nb8 {[%clk 0:00:10.8]} 67. g6 {[%clk 0:00:13.8]} 67... Nc6 {[%clk
0:00:12.1]} 68. g7 {[%clk 0:00:15.5]} 68... Ne7 {[%clk 0:00:13.4]} 69. Be6
{[%clk 0:00:17.2]} 1-0

[Event "GrandPrix_30.05"]
[Site "Chess.com"]
[Date "2020.05.30"]
[Round "1"]
[White "Olga_Girya"]
[Black "chessfreak35"]
[Result "0-1"]
[WhiteElo "2144"]
[BlackElo "2549"]
[TimeControl "600+2"]
[EndTime "8:25:02 PDT"]
[Termination "chessfreak35 won by resignation"]

1. d4 {[%clk 0:10:00.2]} 1... Nf6 {[%clk 0:09:56.1]} 2. c4 {[%clk 0:09:59.9]}
2... e6 {[%clk 0:09:56.8]} 3. Nf3 {[%clk 0:10:00.7]} 3... d5 {[%clk 0:09:56.5]}
4. Nc3 {[%clk 0:10:00.9]} 4... Bb4 {[%clk 0:09:57.3]} 5. cxd5 {[%clk 0:09:56.4]}
5... exd5 {[%clk 0:09:56]} 6. Qa4+ {[%clk 0:09:57.9]} 6... Nc6 {[%clk
0:09:56.4]} 7. Bg5 {[%clk 0:09:59.3]} 7... h6 {[%clk 0:09:56.5]} 8. Bxf6 {[%clk
0:10:00.7]} 8... Qxf6 {[%clk 0:09:58.2]} 9. e3 {[%clk 0:10:01.8]} 9... O-O
{[%clk 0:09:49.7]} 10. Be2 {[%clk 0:10:02.7]} 10... Rd8 {[%clk 0:09:44.2]} 11.
O-O {[%clk 0:10:01.3]} 11... Bf8 {[%clk 0:09:36.3]} 12. a3 {[%clk 0:09:54]}
12... Ne7 {[%clk 0:09:33.1]} 13. b4 {[%clk 0:09:43.1]} 13... g5 {[%clk
0:09:20.6]} 14. Qb3 {[%clk 0:09:36.3]} 14... c6 {[%clk 0:09:19.3]} 15. b5 {[%clk
0:09:30.4]} 15... Ng6 {[%clk 0:09:14.7]} 16. bxc6 {[%clk 0:09:10.8]} 16... bxc6
{[%clk 0:09:15.9]} 17. Rfc1 {[%clk 0:09:07.8]} 17... Bd6 {[%clk 0:08:40.4]} 18.
Nd2 {[%clk 0:08:33.3]} 18... Rb8 {[%clk 0:07:34]} 19. Qc2 {[%clk 0:08:31.8]}
19... g4 {[%clk 0:06:21.4]} 20. Nf1 {[%clk 0:08:00.3]} 20... Nh4 {[%clk
0:05:45.5]} 21. Ng3 {[%clk 0:07:28]} 21... Nf5 {[%clk 0:05:11.2]} 22. Bd3 {[%clk
0:06:26.2]} 22... Nxg3 {[%clk 0:05:07.7]} 23. hxg3 {[%clk 0:06:26.6]} 23... Bd7
{[%clk 0:04:09.6]} 24. Rd1 {[%clk 0:04:50.3]} 24... h5 {[%clk 0:02:21.8]} 25. e4
{[%clk 0:04:36.2]} 25... Qg5 {[%clk 0:02:23]} 26. e5 {[%clk 0:04:28.7]} 26...
Be7 {[%clk 0:02:23.9]} 27. Ne2 {[%clk 0:03:40.6]} 27... h4 {[%clk 0:02:08]} 28.
gxh4 {[%clk 0:03:13]} 28... Qxh4 {[%clk 0:02:09.9]} 29. Bf5 {[%clk 0:03:02.9]}
29... Bxf5 {[%clk 0:01:10.8]} 30. Qxf5 {[%clk 0:03:04.8]} 30... Qg5 {[%clk
0:01:12.4]} 31. Ng3 {[%clk 0:02:30]} 31... Rb6 {[%clk 0:00:53.5]} 32. a4 {[%clk
0:01:51.4]} 32... Qxf5 {[%clk 0:00:41.9]} 33. Nxf5 {[%clk 0:01:51.7]} 33... Bg5
{[%clk 0:00:43.8]} 34. a5 {[%clk 0:01:37]} 34... Rb4 {[%clk 0:00:43]} 35. a6
{[%clk 0:00:36.2]} 35... Kh7 {[%clk 0:00:42.2]} 36. Nd6 {[%clk 0:00:32.3]} 36...
Kg6 {[%clk 0:00:41.7]} 37. Nb7 {[%clk 0:00:27.3]} 37... Rc8 {[%clk 0:00:34.7]}
38. Rab1 {[%clk 0:00:23.7]} 38... Rc4 {[%clk 0:00:27]} 39. Nd6 {[%clk
0:00:22.4]} 39... Rd8 {[%clk 0:00:24.7]} 40. Nxc4 {[%clk 0:00:23.1]} 40... dxc4
{[%clk 0:00:26.6]} 41. Rb7 {[%clk 0:00:18.4]} 41... c3 {[%clk 0:00:27.5]} 42.
Rxa7 {[%clk 0:00:10.3]} 42... c2 {[%clk 0:00:28.5]} 43. Rf1 {[%clk 0:00:11.3]}
43... c1=Q {[%clk 0:00:22.7]} 44. Rxc1 {[%clk 0:00:12.7]} 44... Bxc1 {[%clk
0:00:24.1]} 45. Rc7 {[%clk 0:00:14.2]} 45... Bb2 {[%clk 0:00:19.1]} 46. Rxc6+
{[%clk 0:00:10.4]} 46... Kg7 {[%clk 0:00:17.7]} 47. a7 {[%clk 0:00:09.9]} 47...
Ra8 {[%clk 0:00:15.3]} 48. Rc7 {[%clk 0:00:08.7]} 48... Bxd4 {[%clk 0:00:16.2]}
49. e6 {[%clk 0:00:10]} 49... Bxa7 {[%clk 0:00:14.5]} 50. Rxf7+ {[%clk
0:00:10.2]} 50... Kg6 {[%clk 0:00:16.1]} 51. Rf4 {[%clk 0:00:10.1]} 51... Kg5
{[%clk 0:00:17]} 52. Re4 {[%clk 0:00:10.6]} 52... g3 {[%clk 0:00:17.9]} 53. e7
{[%clk 0:00:10.3]} 53... Bxf2+ {[%clk 0:00:19.2]} 54. Kf1 {[%clk 0:00:11.4]}
54... Re8 {[%clk 0:00:19.6]} 55. Ke2 {[%clk 0:00:12.4]} 55... Kf6 {[%clk
0:00:20.9]} 56. Kf3 {[%clk 0:00:12.8]} 56... Rxe7 {[%clk 0:00:21.8]} 57. Rf4+
{[%clk 0:00:13.8]} 57... Kg6 {[%clk 0:00:22.4]} 58. Rg4+ {[%clk 0:00:15]} 58...
Kf7 {[%clk 0:00:23.7]} 59. Rf4+ {[%clk 0:00:16.1]} 59... Ke6 {[%clk 0:00:25.2]}
60. Kg4 {[%clk 0:00:16.3]} 60... Rg7+ {[%clk 0:00:25.8]} 61. Kh3 {[%clk
0:00:16.5]} 61... Rh7+ {[%clk 0:00:27.2]} 62. Kg4 {[%clk 0:00:17.3]} 62... Ke5
{[%clk 0:00:28.9]} 63. Rf5+ {[%clk 0:00:18]} 63... Ke4 {[%clk 0:00:30.4]} 64.
Rf8 {[%clk 0:00:17.4]} 64... Ke3 {[%clk 0:00:30.8]} 65. Re8+ {[%clk 0:00:17.9]}
65... Kd2 {[%clk 0:00:32.3]} 66. Re4 {[%clk 0:00:18.2]} 66... Rh1 {[%clk
0:00:31.6]} 67. Kf3 {[%clk 0:00:18.3]} 67... Re1 {[%clk 0:00:31.5]} 68. Ra4
{[%clk 0:00:16.9]} 68... Re3+ {[%clk 0:00:32.7]} 69. Kg4 {[%clk 0:00:17.9]}
69... Ke2 {[%clk 0:00:33.7]} 70. Ra2+ {[%clk 0:00:18.6]} 70... Kf1 {[%clk
0:00:35.2]} 71. Kh3 {[%clk 0:00:19.9]} 71... Re8 {[%clk 0:00:32.2]} 72. Ra1+
{[%clk 0:00:19.4]} 72... Be1 {[%clk 0:00:33.6]} 73. Ra2 {[%clk 0:00:19.2]} 73...
Rh8+ {[%clk 0:00:34.9]} 74. Kg4 {[%clk 0:00:20.1]} 74... Bf2 {[%clk 0:00:36.4]}
75. Kf3 {[%clk 0:00:12.6]} 75... Rf8+ {[%clk 0:00:37.2]} 76. Kg4 {[%clk
0:00:13.1]} 76... Kxg2 {[%clk 0:00:39.1]} 0-1

[Event "GrandPrix_30.05"]
[Site "Chess.com"]
[Date "2020.05.30"]
[Round "1"]
[White "Artur0208"]
[Black "Martin_Petrov2000"]
[Result "1/2-1/2"]
[WhiteElo "2282"]
[BlackElo "2032"]
[TimeControl "600+2"]
[EndTime "8:25:03 PDT"]
[Termination "Game drawn by agreement"]

1. d4 {[%clk 0:09:56]} 1... Nf6 {[%clk 0:10:00.3]} 2. c4 {[%clk 0:09:56.2]} 2...
e6 {[%clk 0:10:00.7]} 3. Nf3 {[%clk 0:09:51.4]} 3... b6 {[%clk 0:10:00.7]} 4. g3
{[%clk 0:09:51.5]} 4... Ba6 {[%clk 0:10:00.5]} 5. Qc2 {[%clk 0:09:52]} 5... c5
{[%clk 0:10:00]} 6. d5 {[%clk 0:09:53]} 6... exd5 {[%clk 0:09:59.5]} 7. cxd5
{[%clk 0:09:54.9]} 7... Bb7 {[%clk 0:09:59.7]} 8. Bg2 {[%clk 0:09:56.4]} 8...
Nxd5 {[%clk 0:09:58.5]} 9. O-O {[%clk 0:09:57.6]} 9... Be7 {[%clk 0:09:58.5]}
10. Rd1 {[%clk 0:09:58.9]} 10... Nc6 {[%clk 0:09:57.6]} 11. Qa4 {[%clk
0:09:56.8]} 11... Nf6 {[%clk 0:09:52.4]} 12. Nc3 {[%clk 0:09:50.8]} 12... O-O
{[%clk 0:09:32.9]} 13. Bg5 {[%clk 0:09:22.1]} 13... h6 {[%clk 0:09:08.4]} 14.
Bxf6 {[%clk 0:09:19.3]} 14... Bxf6 {[%clk 0:09:07.9]} 15. Rd2 {[%clk 0:08:29.9]}
15... Na5 {[%clk 0:07:01.7]} 16. Rxd7 {[%clk 0:07:12.6]} 16... Qe8 {[%clk
0:07:00.4]} 17. Qd1 {[%clk 0:07:11.3]} 17... Rd8 {[%clk 0:06:21]} 18. Rxd8
{[%clk 0:07:06.8]} 18... Qxd8 {[%clk 0:06:22.9]} 19. Qc2 {[%clk 0:07:03.5]}
19... Qe7 {[%clk 0:06:17.1]} 20. Rd1 {[%clk 0:07:03.1]} 20... Rd8 {[%clk
0:06:16.8]} 21. h4 {[%clk 0:06:59.1]} 21... Nc4 {[%clk 0:05:49.8]} 22. b3 {[%clk
0:05:10.5]} 22... Rxd1+ {[%clk 0:05:39.8]} 23. Nxd1 {[%clk 0:05:10.8]} 23... Nd6
{[%clk 0:05:36.3]} 24. Ne3 {[%clk 0:05:08.7]} 24... Qe6 {[%clk 0:04:49.9]} 25.
Qd3 {[%clk 0:04:57.3]} 25... Be4 {[%clk 0:04:26.5]} 26. Qa6 {[%clk 0:04:57.3]}
26... Qd7 {[%clk 0:04:26.7]} 27. Nd2 {[%clk 0:04:49.3]} 27... Bxg2 {[%clk
0:04:23.8]} 28. Kxg2 {[%clk 0:04:46.4]} 28... Nb5 {[%clk 0:03:43.8]} 29. Ne4
{[%clk 0:04:36.7]} 29... Bd4 {[%clk 0:03:33.6]} 30. Nc2 {[%clk 0:04:19.6]} 30...
f5 {[%clk 0:03:22.1]} 31. Nxd4 {[%clk 0:04:10.5]} 31... Nxd4 {[%clk 0:03:19.2]}
32. Nc3 {[%clk 0:04:06.9]} 32... f4 {[%clk 0:03:08.2]} 33. Qc4+ {[%clk 0:03:47]}
33... Kh8 {[%clk 0:03:08.1]} 34. Qd3 {[%clk 0:03:10.4]} 34... Qc6+ {[%clk
0:02:57.1]} 35. Ne4 {[%clk 0:03:07.6]} 35... fxg3 {[%clk 0:02:51.6]} 36. fxg3
{[%clk 0:03:09.5]} 36... Qe6 {[%clk 0:02:34.2]} 37. Kh2 {[%clk 0:01:20.5]} 37...
Qf5 {[%clk 0:02:06.8]} 38. Kg2 {[%clk 0:01:14.5]} 38... a5 {[%clk 0:02:00.5]}
39. Nd6 {[%clk 0:00:11]} 39... Qd5+ {[%clk 0:01:58.6]} 40. Ne4 {[%clk 0:00:12]}
40... a4 {[%clk 0:01:57.4]} 41. e3 {[%clk 0:00:13]} 41... axb3 {[%clk
0:01:56.2]} 42. axb3 {[%clk 0:00:12.2]} 42... Qxb3 {[%clk 0:01:53.7]} 43. Qxb3
{[%clk 0:00:08]} 43... Nxb3 {[%clk 0:01:55.6]} 44. Nc3 {[%clk 0:00:09.7]} 44...
Nd2 {[%clk 0:01:43.6]} 45. Kf2 {[%clk 0:00:08]} 45... Kg8 {[%clk 0:01:38.8]} 46.
Ke2 {[%clk 0:00:09.1]} 46... Nc4 {[%clk 0:01:39.8]} 47. Kd3 {[%clk 0:00:10.5]}
47... Nd6 {[%clk 0:01:37.9]} 48. e4 {[%clk 0:00:11.3]} 48... Kf7 {[%clk
0:01:33.7]} 49. Na4 {[%clk 0:00:09.3]} 49... Nc8 {[%clk 0:01:23.1]} 50. e5
{[%clk 0:00:07.6]} 50... Ke6 {[%clk 0:01:22.1]} 51. Ke4 {[%clk 0:00:08.9]} 51...
c4 {[%clk 0:01:16.7]} 52. Nc3 {[%clk 0:00:09.4]} 52... Ne7 {[%clk 0:01:10.6]}
53. Ne2 {[%clk 0:00:09.6]} 53... Kd7 {[%clk 0:00:32]} 54. Nd4 {[%clk 0:00:09]}
54... g6 {[%clk 0:00:23.9]} 55. Nc2 {[%clk 0:00:04.6]} 55... b5 {[%clk 0:00:20]}
56. g4 {[%clk 0:00:04.8]} 56... Nc6 {[%clk 0:00:18.4]} 57. Kd5 {[%clk
0:00:05.3]} 57... c3 {[%clk 0:00:14.9]} 58. e6+ {[%clk 0:00:05.5]} 58... Kc7
{[%clk 0:00:15.8]} 59. Kc5 {[%clk 0:00:05.2]} 59... b4 {[%clk 0:00:15.3]} 60. e7
{[%clk 0:00:06.4]} 60... Nxe7 {[%clk 0:00:14.6]} 61. Nxb4 {[%clk 0:00:05.1]}
61... h5 {[%clk 0:00:08.3]} 62. gxh5 {[%clk 0:00:04.8]} 62... gxh5 {[%clk
0:00:10.2]} 63. Kc4 {[%clk 0:00:06.2]} 63... Kd6 {[%clk 0:00:10.9]} 64. Kxc3
{[%clk 0:00:07.3]} 64... Ke5 {[%clk 0:00:11.8]} 65. Kd3 {[%clk 0:00:08.9]} 65...
Kf4 {[%clk 0:00:11.7]} 66. Ke2 {[%clk 0:00:10.1]} 66... Nf5 {[%clk 0:00:12.1]}
67. Kf2 {[%clk 0:00:11.2]} 67... Nxh4 {[%clk 0:00:11.5]} 68. Nd5+ {[%clk
0:00:12.6]} 68... Kg5 {[%clk 0:00:12.7]} 69. Ne3 {[%clk 0:00:13.9]} 69... Nf5
{[%clk 0:00:13.5]} 70. Nxf5 {[%clk 0:00:14.3]} 70... Kxf5 {[%clk 0:00:15.4]} 71.
Kg3 {[%clk 0:00:16.2]} 71... Kg5 {[%clk 0:00:15.6]} 1/2-1/2